{"text_format":"1","workbook":"xlsx","n_sheets":2,"sheets":["שאלון","טבלאות"],"not_rendered":{"charts":0,"images":1,"macros":1,"external_links":0,"defined_names":3,"comments":0,"pivot_tables":0},"unopened":[],"bounds":{"document_bytes":16777216,"sheet_cells":100000,"rows_first":2000,"rows_last":500,"rows_between":2000,"halvings":0,"cell_chars":16384,"cell_head_chars":4096},"cells_cut":0,"cells_raw":0,"read":"whole","date_system":"1900"}

{"sheet":"שאלון","index":0,"n_rows":23,"n_cols":16,"rows_kept":23,"cut":false,"hidden":false,"merged":[[1,2,1,5],[20,0,21,0],[0,0,0,1],[22,1,23,1],[2,0,7,0],[8,0,12,0],[13,0,19,0]]}
["השאלון נועד לבחון את הצורך בייעוץ פרישה והוא אינו מהווה המלצה לקבלת ייעוץ פרישה או לחוסר בצורך בייעוץ.\nכל הזכויות שמורות לסמארט פנסיה - המרכז לתכנון הפרישה בע\"מ.\nאין להעתיק ו/או לעשות שימוש בשאלון שלא למטרת בחינת הצורך בייעוץ פרישה.",null,"גבוה","בינוני","נמוך","לא יודע",null,null,null,"גבוה=1","גבוה=4","נמוך/גבוה","ציון","התאמה ל-100","משקל","ציון משוקלל"]
[null,null,"סמן X במקום המתאים"]
["פנסיוני","מהי מידת הידע שלך בתחום הפנסיוני שכולל את התכניות שברשותך?",null,"X",null,null,null,null,null,{"$f":"IF($C3<>0,1,IF($D3<>0,2,IF($E3<>0,3,4)))","v":2},{"$f":"IF($C3=\"X\",4,IF($D3=\"X\",3,IF($E3=\"X\",2,1)))","v":3},"נמוך=ייעוץ",{"$f":"IF(L3=\"נמוך=ייעוץ\",J3,K3)","v":2},{"$f":"M3*100/(COUNTA($B$3:$B$22)*4)","v":2.5},0.08,{"$f":"+N3*O3*20","v":4}]
[null,"מהו מספר תכניותיך הפנסיוניות ללא קרנות השתלמות (1=נמוך; 2-4=בינוני; 5 ומעלה=גבוה)?",null,"X",null,null,null,null,null,{"$f":"IF($C4<>0,1,IF($D4<>0,2,IF($E4<>0,3,4)))","v":2},{"$f":"IF($C4=\"X\",4,IF($D4=\"X\",3,IF($E4=\"X\",2,1)))","v":3},"גבוה=ייעוץ",{"$f":"IF(L4=\"נמוך=ייעוץ\",J4,K4)","v":3},{"$f":"M4*100/(COUNTA($B$3:$B$22)*4)","v":3.75},7.0000000000000007E-2,{"$f":"+N4*O4*20","v":5.25}]
[null,"מהי מידת הידע שלך לגבי תקופת תשלום הקצבה בתכניות הפנסיה שלך ששאריך יהיו זכאים להם באם תלך לעולמך (חו\"ח)?",null,null,"X",null,null,null,null,3,2,"נמוך=ייעוץ",3,3.75,0.05,3.75]
[null,"אם אתה מקבל פנסיה תקציבית (צבא, משטרה, שב\"ס, מדינה, מוסד ציבורי) - מהי מידת הסבירות שיהיו לך תכניות פנסיוניות נוספות בגיל פרישה?",null,null,"X",null,null,null,null,{"$f":"IF($C6<>0,1,IF($D6<>0,2,IF($E6<>0,3,4)))","v":3},{"$f":"IF($C6=\"X\",4,IF($D6=\"X\",3,IF($E6=\"X\",2,1)))","v":2},"גבוה=ייעוץ",2,2.5,0.03,1.5]
[null,"מהי מידת הסבירות שתצא לפנסיה מוקדמת?",null,null,"X",null,null,null,null,{"$f":"IF($C7<>0,1,IF($D7<>0,2,IF($E7<>0,3,4)))","v":3},{"$f":"IF($C7=\"X\",4,IF($D7=\"X\",3,IF($E7=\"X\",2,1)))","v":2},"גבוה=ייעוץ",2,2.5,0.02,1]
[null,"מהי מידת הבקיאות שלך לגבי המסלולים האפשריים לקבלת קצבה מהתכניות הפנסיוניות שלך?",null,"X",null,null,null,null,null,{"$f":"IF($C8<>0,1,IF($D8<>0,2,IF($E8<>0,3,4)))","v":2},{"$f":"IF($C8=\"X\",4,IF($D8=\"X\",3,IF($E8=\"X\",2,1)))","v":3},"נמוך=ייעוץ",2,2.5,7.0000000000000007E-2,3.5000000000000004]
["מיסויי","מהי מידת הידע שלך לגבי חבות המס שחלה על כל אחת מתכניותיך הפנסיוניות?",null,null,"X",null,null,null,null,{"$f":"IF($C9<>0,1,IF($D9<>0,2,IF($E9<>0,3,4)))","v":3},{"$f":"IF($C9=\"X\",4,IF($D9=\"X\",3,IF($E9=\"X\",2,1)))","v":2},"נמוך=ייעוץ",3,3.75,0.08,6]
[null,"מהי מידת הסבירות שתהיה זכאי ממעסיקך למענקי פרישה מיוחדים כגון - פדיון חופשה, פדיון מחלה, השלמת פיצויים?","X",null,null,null,null,null,null,1,4,"גבוה=ייעוץ",4,5,0.06,6]
[null,"מהי קבוצת השכר ברוטו אליה אתה משתייך:\n   - עד 8,000 ש\"ח (נמוך)\n   - 15,000-8,000 ש\"ח (בינוני)\n   - מעל 15,000 ש\"ח (גבוה)",null,"X",null,null,null,null,null,2,3,"גבוה=ייעוץ",3,3.75,0.1,7.5]
[null,"מהו שיעור השינוי שחל בשכרך במהלך 10 השנים האחרונות (עד 10%=נמוך; 10%-30%=בינוני; מעל 30%=גבוה)?",null,"X",null,null,null,null,null,2,3,"גבוה=ייעוץ",3,3.75,0.03,2.25]
[null,"האם ביצעת בעבר רצף פיצויים ו/או רצף קצבה (כן=גבוה; לא=נמוך)?",null,null,"X",null,null,null,null,3,2,"גבוה=ייעוץ",2,2.5,0.04,2]
["כלכלי","מהי מידת הידע שלך בתכנון כלכלי לקראת פרישה לפנסיה?",null,"X",null,null,null,null,null,2,3,"נמוך=ייעוץ",2,2.5,7.0000000000000007E-2,3.5000000000000004]
[null,"מהי מידת הידע שלך לגבי סכומי הקצבה הצפויים לך במועד הפרישה?","X",null,null,null,null,null,null,1,4,"נמוך=ייעוץ",1,1.25,0.06,1.5]
[null,"מהי מידת הידע שלך לגבי תוחלת החיים הצפויה לך בהתאם לתחזיות האקטואריות?",null,"X",null,null,null,null,null,2,3,"נמוך=ייעוץ",2,2.5,0.02,1]
[null,"מהי מידת הידע שלך לגבי סכומי ההון שיעמדו לרשותך במועד הפרישה שאינם במסגרת תכניות לקצבה?","X",null,null,null,null,null,null,1,4,"נמוך=ייעוץ",1,1.25,0.03,0.75]
[null,"מהי מידת הסבירות שתמשיך לעבוד לאחר הפרישה?",null,"X",null,null,null,null,null,2,3,"גבוה=ייעוץ",3,3.75,0.02,1.5]
[null,"האם דמי הניהול בתכניותיך הפנסיוניות השונות נקבעו על בסיס הסדר שערך מעסיקך (=גבוה) או טופלו על ידך (=בינוני) או שלא טופלו כלל (=נמוך)?","X",null,null,null,null,null,null,1,4,"נמוך=ייעוץ",1,1.25,0.05,1.25]
[null,"מהו שיעור היקף הנכסים הנזילים האחרים שלך המיועדים לפרישה ביחס לנכסים הפנסיוניים שלך?",null,"X",null,null,null,null,null,2,3,"גבוה=ייעוץ",3,3.75,0.03,2.25]
["אחר","מהי מידת הבריאות שלך (טובה=גבוה; בעיות בריאות שלא צפויות להשפיע על תוחלת החיים=בינוני; מחלה קשה=נמוך)?","X",null,null,null,null,null,null,1,4,"נמוך=ייעוץ",1,1.25,0.05,1.25]
[null,"מהו פער הגילאים בינך לבין בת/בן זוגך (עד שנתיים=נמוך; 3-5 שנים=בינוני; 6 שנים ומעלה=גבוה)?","X",null,null,null,null,null,null,1,4,"גבוה=ייעוץ",4,5,0.04,4]
[null,{"$f":"IF(COUNTA(נקה_טופס)<20,\"חסר מענה לאחת השאלות\",VLOOKUP(P23,טבלאות!$A$1:$B$3,2))","v":"סבירות בינונית לערך מוסף בייעוץ פרישה"},null,null,null,null,null,null,null,null,null,null,{"$f":"SUM(M3:M22)","v":47},{"$f":"SUM(N3:N22)","v":58.75},{"$f":"SUM(O3:O22)","v":1.0000000000000004},{"$f":"SUM(P3:P22)","v":59.75}]

{"sheet":"טבלאות","index":1,"n_rows":3,"n_cols":2,"rows_kept":3,"cut":false,"hidden":true,"merged":[]}
[0,"סבירות נמוכה לערך מוסף בייעוץ פרישה"]
[40,"סבירות בינונית לערך מוסף בייעוץ פרישה"]
[60,"סבירות גבוהה לערך מוסף בייעוץ פרישה"]